fUSD/lending_fUSD_20240115
["ID","MTS","AMOUNT","RATE_DAILY","PERIOD"]
[311673692,1705308646479,-465.67000015,0.00027289,6]
[311673693,1705308646490,-561.424,0.00027289,6]
[311673694,1705308646502,-201.72355701,0.00027289,6]
[311673695,1705308646511,-1064.0,0.00027289,2]
[311673696,1705308646520,-153.96,0.00027289,2]
[311673697,1705308646529,-850.0667792,0.00027291,2]
[311673698,1705308646539,-169.41942691,0.00027292,2]
[311673699,1705308646548,-114.73023688,0.00027293,2]
[311673700,1705308646559,-40.26976312,0.00027293,2]
[311673701,1705308646569,-876.3809334,0.00027293,2]
[311673702,1705308681829,3185.89838635,0.00022079,2]
[311673703,1705308682249,354.14107881,0.00021849,2]
[311673712,1705308844457,202.0,0.00021356,2]
[311673713,1705308848558,499.999999,0.0002,2]
[311673715,1705309049746,176.2,0.00022,2]
[311673716,1705309057485,502.5825696,0.00022,2]
[311673718,1705309174151,418.22,0.00020145,2]
[311673719,1705309186823,250.0,0.00022018,2]
[311673720,1705309212181,250.0,0.000205,2]
[311673721,1705309223156,161.88,0.00021955,2]
[311673723,1705309231813,23900.0,0.0002198,2]
[311673726,1705309332906,576.99,0.00021797,2]
[311673728,1705309348815,150.0,0.00021778,2]
[311673730,1705309362084,308.68,0.00021881,2]
[311673732,1705309427895,2000.0,0.00021821,2]
[311673733,1705309430945,500.0,0.00021918,2]
[311673734,1705309460563,165.97,0.00021781,2]
[311673735,1705309462819,524.50439607,0.00022099,2]
[311673736,1705309475370,204.29770003,0.00022099,2]
[311673737,1705309475847,295.34208328,0.00022099,2]
[311673738,1705309483199,164.7287992,0.00022098,2]
[311673739,1705309483293,200.0,0.00021807,2]
[311673740,1705309496935,503.60808634,0.00022098,2]
[311673741,1705309525750,158.8,0.00021866,2]
[311673742,1705309533075,5330.96781737,0.00022099,2]
[311673743,1705309548348,295.34208328,0.00022098,2]
[311673744,1705309564270,202.0,0.0002163,2]
[311673746,1705309567949,157.30938356,0.00022008,2]
[311673747,1705309577458,503.60808634,0.00022098,2]
[311673748,1705309644296,337.75486812,0.00021548,2]
[311673749,1705309655971,503.60808634,0.00022098,2]
[311673750,1705309663288,176.2,0.00022,2]
[311673751,1705309687799,250.0,0.0002191,2]
[311673752,1705309689642,23900.0,0.0002191,2]
[311673753,1705309696674,432.9,0.00019978,2]
[311673754,1705309736717,503.60808634,0.00022098,2]
[311673756,1705309753298,958.9625,0.00022,2]
[311673757,1705309760011,156.98,0.00022076,2]
[311673758,1705309771376,935.24,0.00021824,2]
[311673761,1705309804972,503.60808634,0.00022098,2]
[311673764,1705309815329,-160.73,0.00022099,2]
[311673765,1705309815352,-38421.00018204,0.000221,2]
[311673766,1705309815374,-156.98,0.00022181,2]
[311673767,1705309815397,-432.9,0.00022242,2]
[311673768,1705309815420,-156.98,0.00022285,2]
[311673769,1705309815444,-2471.83618827,0.00022309,2]
[311673770,1705309815468,-154.08,0.00022325,2]
[311673771,1705309815489,-156.98,0.0002239,2]
[311673772,1705309815510,-547.01659378,0.00022426,2]
[311673773,1705309815531,-156.98,0.00022494,2]
[311673774,1705309815552,-499.99,0.00022532,2]
[311673775,1705309815572,-176.2,0.00022548,2]
[311673776,1705309815595,-158.8,0.00022595,2]
[311673777,1705309815617,-156.98,0.00022599,2]
[311673778,1705309815639,-156.98,0.00022704,2]
[311673779,1705309815662,-154.08,0.00022772,2]
[311673780,1705309815683,-11043.095,0.000228,2]
[311673781,1705309815704,-520.77193408,0.000228,2]
[311673782,1705309815726,-156.98,0.00022808,2]
[311673783,1705309815747,-520.77193406,0.0002285,2]
[311673784,1705309815768,-217.50821309,0.0002285,3]
[311673785,1705309815789,-308.68,0.0002286,2]
[311673786,1705309815811,-528.69290238,0.00022898,2]
[311673787,1705309815833,-213.60044722,0.00022898,2]
[311673788,1705309815853,-164.7287992,0.00022898,2]
[311673789,1705309815874,-1052.86356678,0.00022898,2]
[311673790,1705309815895,-295.02677644,0.00022898,2]
[311673791,1705309815918,-517.16535551,0.00022899,2]
[311673792,1705309815940,-500.0,0.000229,2]
[311673793,1705309815962,-71344.0074,0.000229,2]
[311673794,1705309815983,-1000.0,0.000229,2]
[311673795,1705309816005,-17015.2602,0.000229,2]
[311673796,1705309816025,-482.33450715,0.000229,2]
[311673811,1705309832414,-151.95541755,0.00022786,2]
[311673812,1705309832423,-503.60808634,0.00022899,2]
[311673813,1705309832432,-466.38028183,0.000229,3]
[311673814,1705309832441,-16430.73549285,0.000229,2]
[311673815,1705309832450,-5000.0,0.000229,2]
[311673816,1705309832460,-273.95041139,0.000229,2]
[311673817,1705309832469,-292.31644276,0.000229,2]
[311673818,1705309832478,-4585.94698663,0.000229,2]
[311673819,1705309832490,-709.51000005,0.000229,2]
[311673820,1705309832502,-980.77922571,0.000229,2]
[311673821,1705309832513,-422.25926947,0.000229,2]
[311673822,1705309832522,-2927.66572362,0.000229,2]
[311673823,1705309832537,-644.8767309,0.000229,2]
[311673878,1705309838270,-4313.30744763,0.000229,2]
[311673879,1705309838282,-2109.99231281,0.000229,2]
[311673880,1705309838464,-13374.80578504,0.000229,2]
[311673881,1705309838473,-265.54454102,0.000229,2]
[311673882,1705309838483,-150.30715875,0.000229,2]
[311673883,1705309838492,-2781.36985959,0.000229,2]
[311673884,1705309838501,-1296.10476184,0.000229,2]
[311673885,1705309838510,-156.98,0.00022913,2]
[311673886,1705309838520,-278.75448039,0.00022998,2]
[311673887,1705309838530,-151.40115,0.00022998,3]
[311673888,1705309838539,-151.40115,0.00022998,3]
[311673889,1705309838548,-151.40115,0.00022998,3]
[311673890,1705309838558,-151.40115,0.00022998,3]
[311673891,1705309838567,-151.40115,0.00022998,3]
[311673892,1705309838576,-151.40115,0.00022998,3]
[311673893,1705309838586,-151.40115,0.00022998,3]
[311673894,1705309838595,-151.40115,0.00022998,3]
[311673895,1705309838604,-151.40115,0.00022998,3]
[311673896,1705309838614,-151.40115,0.00022998,3]
[311673897,1705309838623,-151.40115,0.00022998,3]
[311673898,1705309838632,-151.40115,0.00022998,3]
[311673899,1705309838642,-151.40115,0.00022998,3]
[311673900,1705309838652,-151.40115,0.00022998,3]
[311673902,1705309838661,-151.40115,0.00022998,3]
[311673904,1705309838672,-151.40115,0.00022998,3]
[311673906,1705309838682,-151.40115,0.00022998,3]
[311673908,1705309838692,-151.40115,0.00022998,3]
[311673910,1705309838701,-151.40115,0.00022998,3]
[311673912,1705309838711,-151.40115,0.00022998,3]
[311673914,1705309838720,-151.40115,0.00022998,3]
[311673916,1705309838729,-151.40115,0.00022998,3]
[311673918,1705309838738,-151.40115,0.00022998,3]
[311673920,1705309838747,-151.40115,0.00022998,3]
[311673922,1705309838756,-151.40115,0.00022998,3]
[311673924,1705309838766,-1821.82842709,0.00022999,2]
[311673926,1705309838776,-171.46989568,0.00022999,2]
[311673928,1705309838785,-3937.04108357,0.00022999,2]
[311673930,1705309838795,-252.41687247,0.00022999,2]
[311673932,1705309838805,-198.60853888,0.00022999,2]
[311673934,1705309838816,-290.03392224,0.00022999,2]
[311673936,1705309838824,-738590.3791071,0.00023,2]
[311673938,1705309838834,-1126606.27041427,0.00023,2]
[311673940,1705309838846,-1575.41631639,0.00023,2]
[311673944,1705309838873,-584.62144801,0.00023,2]
[311673946,1705309838884,-30219.05333107,0.00023,2]
[311674141,1705309840676,-531.06,0.00023,2]
[311674151,1705309840759,-597.60997935,0.00023,2]
[311674162,1705309840852,-3161.25299828,0.00023,2]
[311674163,1705309840866,-10245.4478678,0.00023,2]
[311674164,1705309841375,-113825.98235368,0.00023,2]
[311674165,1705309841433,-500.0,0.00023,2]
[311674183,1705309843902,-2764.88178593,0.00023,2]
[311674184,1705309843918,-43227.05014068,0.00023,2]
[311674185,1705309843952,-1944.37144746,0.00023,2]
[311674186,1705309843964,-16704.43177901,0.00023,2]
[311674187,1705309843975,-8684.65198867,0.00023,2]
[311674188,1705309843994,-1242.2416935,0.00023,2]
[311674189,1705309844006,-312.37206188,0.00023,2]
[311674192,1705309846270,-444.3552797,0.000229,6]
[311674193,1705309846282,-353.21062817,0.000229,6]
[311674194,1705309846292,-888.98299361,0.00023,2]
[311674195,1705309846304,-7378.38208233,0.00023,2]
[311674196,1705309846336,-5147.50763889,0.00023,2]
[311674197,1705309846393,-729.0490375,0.00023,2]
[311674198,1705309846405,-546.006,0.00023,2]
[311674199,1705309846458,-923.29501141,0.00023,2]
[311674200,1705309846518,-425.400001,0.00023,2]
[311674201,1705309846530,-1101.48803666,0.00023,2]
[311674203,1705309850482,-520.77193406,0.000229,2]
[311674204,1705309850504,-503.60808634,0.00022999,2]
[311674205,1705309850529,-148975.6199796,0.00023,2]
[311674206,1705309851535,5898.6355,0.00022,2]
[311674207,1705309879676,510.8909322,0.00020699,5]
[311674211,1705310279273,176.2,0.00022,2]
[311674212,1705310284360,202.0,0.00021887,2]
[311674215,1705310710782,250.0,0.000205,2]
[311674216,1705310722169,1115.17709825,0.00021982,2]
[311674217,1705310773945,476.42,0.00020579,2]
[311674218,1705310818949,227.01,0.00022446,2]
[311674219,1705310827742,373.45,0.00022446,2]
[311674220,1705310853520,500.0,0.00022415,2]
[311674221,1705310890848,176.2,0.00022,2]
[311674248,1705310961450,2000.0,0.00022377,2]
[311674250,1705310966919,288.49,0.00022377,2]
[311674252,1705310985932,159.14,0.00022469,2]
[311674255,1705311004183,202.0,0.00022269,2]
[311674272,1705311031342,-176.2,0.00022548,2]
[311674273,1705311031352,-150.0,0.00022621,2]
[311674275,1705311031361,-56.819,0.00022649,2]
[311674307,1705311037386,-93.181,0.00022649,2]
[311674308,1705311037395,-160.64,0.00022748,2]
[311674309,1705311037405,-476.42,0.00022843,2]
[311674310,1705311037415,-2144.54944715,0.00022899,2]
[311674311,1705311037425,-5000.0,0.000229,2]
[311674312,1705311037434,-500.0,0.000229,2]
[311674313,1705311037444,-105966.3424,0.000229,2]
[311674314,1705311037454,-1026.33552928,0.000229,2]
[311674315,1705311037464,-6140.28752502,0.000229,2]
[311674316,1705311037473,-890.61020969,0.000229,2]
[311674317,1705311037482,-864.06984124,0.000229,2]
[311674318,1705311037492,-255.77688738,0.000229,2]
[311674319,1705311037501,-21737.91,0.0002292,2]
[311674320,1705311037510,-161.14,0.00022942,2]
[311674321,1705311037520,-151.40115,0.00022998,3]
[311674322,1705311037531,-151.40115,0.00022998,3]
[311674323,1705311037540,-151.40115,0.00022998,3]
[311674324,1705311037550,-151.40115,0.00022998,3]
[311674325,1705311037560,-151.40115,0.00022998,3]
[311674326,1705311037570,-151.40115,0.00022998,3]
[311674327,1705311037579,-151.40115,0.00022998,3]
[311674328,1705311037589,-151.40115,0.00022998,3]
[311674329,1705311037599,-151.40115,0.00022998,3]
[311674330,1705311037608,-151.40115,0.00022998,3]
[311674331,1705311037619,-151.40115,0.00022998,3]
[311674332,1705311037628,-151.40115,0.00022998,3]
[311674333,1705311037637,-151.40115,0.00022998,3]
[311674334,1705311037647,-151.40115,0.00022998,3]
[311674335,1705311037657,-151.40115,0.00022998,3]
[311674336,1705311037667,-151.40115,0.00022998,3]
[311674337,1705311037677,-151.40115,0.00022998,3]
[311674338,1705311037687,-151.40115,0.00022998,3]
[311674339,1705311037697,-151.40115,0.00022998,3]
[311674340,1705311037709,-151.40115,0.00022998,3]
[311674341,1705311037719,-151.40115,0.00022998,3]
[311674342,1705311037729,-151.40115,0.00022998,3]
[311674343,1705311037739,-151.40115,0.00022998,3]
[311674344,1705311037749,-151.40115,0.00022998,3]
[311674345,1705311037760,-151.40115,0.00022998,3]
[311674347,1705311037770,-151.40115,0.00022998,3]
[311674349,1705311037779,-151.40115,0.00022998,3]
[311674351,1705311037789,-151.40115,0.00022998,3]
[311674353,1705311037799,-151.40115,0.00022998,3]
[311674354,1705311037808,-151.40115,0.00022998,3]
[311674356,1705311037817,-151.40115,0.00022998,3]
[311674358,1705311037827,-151.40115,0.00022998,3]
[311674360,1705311037836,-151.40115,0.00022998,3]
[311674362,1705311037846,-151.40115,0.00022998,3]
[311674364,1705311037856,-151.40115,0.00022998,3]
[311674366,1705311037865,-151.40115,0.00022998,3]
[311674368,1705311037874,-151.40115,0.00022998,3]
[311674370,1705311037884,-151.40115,0.00022998,3]
[311674372,1705311037893,-151.40115,0.00022998,3]
[311674374,1705311037902,-151.40115,0.00022998,3]
[311674376,1705311037911,-151.40115,0.00022998,3]
[311674378,1705311037920,-151.40115,0.00022998,3]
[311674380,1705311037929,-151.40115,0.00022998,3]
[311674382,1705311037938,-151.40115,0.00022998,3]
[311674384,1705311037947,-151.40115,0.00022998,3]
[311674386,1705311037959,-151.40115,0.00022998,3]
[311674388,1705311037968,-151.40115,0.00022998,3]
[311674390,1705311037977,-177.40115,0.00022998,3]
[311674392,1705311037986,-499.99,0.00022998,2]
[311674394,1705311037995,-625.30525603,0.00022999,2]
[311674396,1705311038004,-1711360.83622558,0.00023,2]
[311674404,1705311038067,-8999.99989707,0.00023,2]
[311674407,1705311038087,-5522.42732716,0.00023,2]
[311674691,1705311040813,-915.8450377,0.00023,2]
[311674717,1705311042613,-270.90651794,0.000229,2]
[311674718,1705311042622,-113.14531791,0.00023,2]
[311674719,1705311042856,-13233.56658387,0.00023,2]
[311674736,1705311045499,-12610.00000019,0.00023,2]
[311674737,1705311045510,-2206.72999593,0.00023,2]
[311674738,1705311045525,-10992.96140148,0.00023,2]
[311674739,1705311045537,-631.27499999,0.00023,2]
[311674740,1705311045548,-69347.54951628,0.00023,2]
[311674741,1705311045567,-11999.25500812,0.00023,2]
[311674742,1705311045597,-606.35178313,0.00023,2]
[311674743,1705311045688,-4920.73552739,0.00023,2]
[311674745,1705311055859,292.62823719,0.00022269,2]
[311674746,1705311104796,1272.12074724,0.00022338,2]
[311674749,1705311231406,793.09740267,0.00022477,2]
[311674750,1705311232561,1272.12074724,0.00022301,2]
[311674751,1705311266416,475.48,0.00020632,2]
[311674752,1705311272389,348.55,0.00022484,2]
[311674753,1705311290206,500.0,0.00022443,2]
[311674754,1705311400190,818.39,0.00022369,2]
[311674755,1705311413659,288.49,0.00022422,2]
[311674757,1705311439757,2000.0,0.00022422,2]
[311674758,1705311503298,176.2,0.00022,2]
[311674761,1705311623771,157.03,0.0002236,2]
[311674762,1705311694828,161.64,0.00022319,2]
[311674763,1705311731320,451.7,0.00020228,2]
[311674764,1705311731705,451.7,0.00022491,2]
[311674765,1705311737697,1272.12074724,0.00022486,2]
[311674766,1705311757952,1500.0,0.00022461,2]
[311674767,1705311758792,1500.0,0.00022439,2]
[311674768,1705311761067,122.64502017,0.0002213,2]
[311674769,1705311801270,185.67,0.00022071,10]
[311674770,1705311852105,464.59,0.00022023,2]
[311674771,1705311920751,166.79,0.00021977,2]
[311674772,1705311942128,2000.0,0.0002199,2]
[311674773,1705311994358,202.0,0.00021784,2]
[311674775,1705312116435,339.11749718,0.00021899,2]
[311674776,1705312137020,1276.95985847,0.00021899,5]
[311674777,1705312156996,1274.95225813,0.00021899,5]
[311674786,1705312212364,250.0,0.000205,2]
[311674788,1705312216885,406.53,0.00020065,2]
[311674801,1705312234265,-665.99782689,0.00022129,2]
[311674802,1705312234276,-202.66497983,0.0002213,2]
[311674803,1705312234286,-159.6,0.00022224,2]
[311674804,1705312234296,-327.82200295,0.00022329,2]
[311674805,1705312234336,-78.70799705,0.00022329,2]
[311674806,1705312234346,-161.64,0.00022513,2]
[311674807,1705312234355,-157.03,0.00022608,2]
[311674808,1705312234365,-161.64,0.00022707,2]
[311674809,1705312234374,-63.65315284,0.00022716,2]
[311674810,1705312234387,-98.83684716,0.00022716,2]
[311674811,1705312234397,-150.0,0.0002274,2]
[311674812,1705312234406,-202.8020205,0.00022757,2]
[311674813,1705312234426,-97.1979795,0.00022757,2]
[311674814,1705312234435,-206.2689659,0.00022757,2]
[311674815,1705312234444,-157.91718485,0.00022769,2]
[311674816,1705312234453,-393.85529835,0.00022769,2]
[311674817,1705312234462,-625.0,0.000228,2]
[311674818,1705312234471,-157.03,0.00022857,2]
[311674819,1705312234482,-195.67684712,0.00022897,5]
[311674820,1705312234491,-527.17427812,0.00022898,2]
[311674821,1705312234503,-42387.82896409,0.00022899,2]
[311674822,1705312234513,-5000.0,0.000229,2]
[311674823,1705312234522,-2322.81895275,0.000229,2]
[311674824,1705312234534,-2961.16525233,0.000229,2]
[311674862,1705312237667,-544.82847202,0.000229,2]
[311674863,1705312237773,-440.01973,0.000229,2]
[311674864,1705312237785,-44094.48849311,0.000229,2]
[311674865,1705312237836,-14392.51840333,0.000229,2]
[311674866,1705312237897,-747.6198289,0.000229,2]
[311674867,1705312237961,-29743.40986756,0.000229,2]
[311674869,1705312237971,-625.0,0.000229,2]
[311674871,1705312237980,-267.89644538,0.000229,2]
[311674873,1705312237990,-593.7401398,0.000229,2]
[311674875,1705312237999,-223.80477651,0.000229,2]
[311674877,1705312238008,-576.04656082,0.000229,2]
[311674879,1705312238018,-161.64,0.00022901,2]
[311674881,1705312238027,-288.69862377,0.00022928,2]
[311674883,1705312238037,-300.0,0.00022983,2]
[311674885,1705312238047,-387.48072314,0.00022998,2]
[311674887,1705312238057,-1288.37394118,0.00022998,2]
[311674889,1705312238067,-499.99,0.00022998,2]
[311674891,1705312238077,-151.40115,0.00022998,3]
[311674893,1705312238087,-151.40115,0.00022998,3]
[311674895,1705312238097,-151.40115,0.00022998,3]
[311674897,1705312238106,-151.40115,0.00022998,3]
[311674899,1705312238116,-151.40115,0.00022998,3]
[311674901,1705312238126,-151.40115,0.00022998,3]
[311674903,1705312238136,-151.40115,0.00022998,3]
[311674905,1705312238146,-151.40115,0.00022998,3]
[311674907,1705312238155,-151.40115,0.00022998,3]
[311674909,1705312238165,-151.40115,0.00022998,3]
[311674911,1705312238174,-151.40115,0.00022998,3]
[311674913,1705312238184,-151.40115,0.00022998,3]
[311674915,1705312238194,-151.40115,0.00022998,3]
[311674918,1705312238203,-151.40115,0.00022998,3]
[311674920,1705312238212,-151.40115,0.00022998,3]
[311674922,1705312238223,-151.40115,0.00022998,3]
[311674924,1705312238232,-151.40115,0.00022998,3]
[311674926,1705312238241,-151.40115,0.00022998,3]
[311674928,1705312238250,-151.40115,0.00022998,3]
[311674930,1705312238260,-151.40115,0.00022998,3]
[311674932,1705312238269,-151.40115,0.00022998,3]
[311674934,1705312238278,-151.40115,0.00022998,3]
[311674936,1705312238288,-151.40115,0.00022998,3]
[311674938,1705312238297,-151.40115,0.00022998,3]
[311674940,1705312238306,-151.40115,0.00022998,3]
[311674942,1705312238316,-151.40115,0.00022998,3]
[311674944,1705312238327,-151.40115,0.00022998,3]
[311674946,1705312238336,-151.40115,0.00022998,3]
[311674948,1705312238345,-151.40115,0.00022998,3]
[311674950,1705312238355,-151.40115,0.00022998,3]
[311674952,1705312238364,-151.40115,0.00022998,3]
[311674954,1705312238373,-151.40115,0.00022998,3]
[311674956,1705312238382,-151.40115,0.00022998,3]
[311674958,1705312238392,-151.40115,0.00022998,3]
[311674960,1705312238403,-151.40115,0.00022998,3]
[311674962,1705312238413,-151.40115,0.00022998,3]
[311674964,1705312238422,-151.40115,0.00022998,3]
[311674966,1705312238431,-151.40115,0.00022998,3]
[311674968,1705312238441,-793.12076181,0.00022999,2]
[311674970,1705312238450,-855.67764929,0.00022999,2]
[311674972,1705312238459,-830443.25065028,0.00023,2]
[311674974,1705312238470,-838559.46238604,0.00023,2]
[311674976,1705312238482,-1227.84208256,0.00023,2]
[311675098,1705312241318,-113950.27655374,0.00023,2]
[311675099,1705312241334,-1180.78606601,0.00023,2]
[311675100,1705312241345,-1063.76567788,0.00023,2]
[311675101,1705312241372,-8674.30004162,0.00023,2]
[311675102,1705312241384,-616.7792413,0.00023,2]
[311675104,1705312242639,-677.45777158,0.00023,2]
[311675105,1705312242704,-17858.46684278,0.00023,2]
[311675106,1705312242762,-260.63381433,0.00023,2]
[311675107,1705312242775,-9179.29292719,0.00023,2]
[311675108,1705312242802,-751.61924546,0.00023,2]
[311675109,1705312242910,-2601.5819645,0.00023,2]
[311675125,1705312246072,-541.0,0.00023,2]
[311675126,1705312246084,-11015.63353111,0.00023,2]
[311675127,1705312246095,-25309.99999994,0.00023,2]
[311675128,1705312246145,-2686.89724749,0.00023,2]
[311675129,1705312246157,-632.97310383,0.00023,2]
[311675130,1705312246202,-67764.88301294,0.00023,2]
[311675131,1705312246214,-2347.46759022,0.00023,2]
[311675132,1705312246377,-6880.16113432,0.00023,2]
[311675133,1705312246442,-19210.04155673,0.00023,2]
[311675134,1705312246457,-16906.45,0.00023,2]
[311675138,1705312264193,205.99998,0.00021784,2]
[311675139,1705312292516,565.91797276,0.0001315,8]
[311675144,1705312464123,984.47133732,0.00022,2]
[311675146,1705312557862,153.12,0.00021976,2]
[311675147,1705312649569,386.54,0.00020399,2]
[311675148,1705312812140,250.0,0.000205,2]
[311675149,1705312922942,2000.0,0.00022071,2]
[311675150,1705312988021,1000.0,0.00022051,2]
[311675151,1705313074950,202.0,0.00021514,2]
[311675152,1705313086579,154.08,0.00022051,2]
[311675153,1705313110548,375.99,0.00020198,2]
[311675154,1705313142093,155.08136291,0.00022051,2]
[311675155,1705313144349,187.86428723,0.00021753,2]
[311675156,1705313156094,157.41680398,0.00022051,2]
[311675157,1705313192068,150.0,0.00022,2]
[311675158,1705313260323,151.00857465,0.00022,2]
[311675159,1705313291448,367.15,0.00022051,2]
[311675161,1705313315464,200.0,0.00022025,2]
[311675162,1705313336921,167.2,0.00022012,2]
[311675166,1705313408744,987.54,0.0002204,2]
[311675169,1705313430999,393.94,0.00022035,2]
[311675185,1705313431877,-155.0,0.00022228,2]
[311675186,1705313431886,-159.81,0.00022229,2]
[311675187,1705313431896,-160.64,0.00022292,2]
[311675188,1705313431906,-159.81,0.00022394,2]
[311675189,1705313431918,-375.99,0.00022462,2]
[311675190,1705313431929,-164.32,0.00022483,2]
[311675191,1705313431939,-159.81,0.0002256,2]
[311675192,1705313431951,-499.99,0.00022685,2]
[311675193,1705313431961,-159.81,0.00022725,2]
[311675194,1705313431970,-150.0,0.0002277,2]
[311675195,1705313431980,-150.0,0.0002277,2]
[311675196,1705313431990,-150.0,0.0002277,2]
[311675197,1705313431999,-150.0,0.0002277,2]
[311675198,1705313432009,-157.22281,0.0002277,2]
[311675199,1705313432018,-154.08,0.00022786,2]
[311675200,1705313432027,-159.81,0.00022891,2]
[311675201,1705313432036,-155.18702086,0.00022898,2]
[311675202,1705313432045,-2143.50853805,0.00022898,2]
[311675203,1705313432054,-279.07354886,0.00022898,2]
[311675204,1705313432064,-534.38484205,0.00022898,2]
[311675205,1705313432074,-450.516,0.000229,2]
[311675206,1705313432084,-5628.59689799,0.000229,2]
[311675207,1705313432093,-5000.0,0.000229,2]
[311675208,1705313432102,-1000.0,0.000229,2]
[311675209,1705313432112,-23833.39616468,0.000229,2]
[311675210,1705313432297,-5814.93016729,0.000229,2]
[311675211,1705313432308,-12643.92971044,0.000229,2]
[311675212,1705313432319,-13262.74395759,0.000229,2]
[311675213,1705313432328,-684.22368618,0.000229,2]
[311675214,1705313432337,-166.20962493,0.000229,2]
[311675215,1705313432347,-264.91981813,0.000229,2]
[311675216,1705313432356,-768.16508036,0.000229,2]
[311675217,1705313432366,-384.03104054,0.000229,2]
[311675218,1705313432375,-747.82663325,0.000229,2]
[311675219,1705313432384,-1496.30908972,0.000229,6]
[311675220,1705313432393,-395.82675986,0.000229,2]
[311675221,1705313432403,-224.99,0.00022998,5]
[311675222,1705313432412,-195.2885979,0.00022998,3]
[311675223,1705313432421,-2156.55364457,0.00022998,2]
[311675224,1705313432430,-155.0,0.00022998,2]
[311675225,1705313432439,-2704.17548496,0.00022998,2]
[311675226,1705313432450,-155.39401116,0.00022998,2]
[311675227,1705313432459,-155.41027789,0.00022998,2]
[311675228,1705313432468,-14727.78219561,0.00022999,2]
[311675229,1705313432477,-4088.60605647,0.00022999,2]
[311675230,1705313437744,-3443.2889672,0.00022999,2]
[311675231,1705313437931,-6175.14009786,0.00022999,2]
[311675232,1705313437942,-195.14197758,0.00022999,2]
[311675233,1705313437953,-3294.38484961,0.00022999,2]
[311675234,1705313437963,-959.0,0.00022999,2]
[311675235,1705313437972,-469992.42166611,0.00022999,2]
[311675236,1705313438097,-518536.60191238,0.00022999,2]
[311675237,1705313438107,-708973.38899491,0.00023,2]
[311675238,1705313438117,-441492.72212903,0.00023,2]
[311675499,1705313440782,-42729.31724906,0.00023,2]
[311675504,1705313441269,-262.2441,0.00023,2]
[311675517,1705313443307,-6943.1506905,0.00023,2]
[311675518,1705313443419,-19015.47235436,0.00023,2]
[311675519,1705313443431,-4272.69298,0.00023,2]
[311675520,1705313443482,-723.58864611,0.00023,2]
[311675521,1705313443540,-514.59376721,0.00023,2]
[311675525,1705313445805,-63601.5,0.00023,2]
[311675526,1705313445861,-1148.99087199,0.00023,2]
[311675527,1705313445874,-20020.94620973,0.00023,2]
[311675529,1705313446149,-893.81813114,0.00023,2]
[311675531,1705313446162,-19213.31523946,0.00023,2]
[311675532,1705313446186,-14424.99778769,0.00023,2]
[311675533,1705313624728,347.17,0.00020332,2]
[311675534,1705313632804,233.15598809,0.00021753,7]
[311675535,1705313924010,865.95,0.00022041,2]
[311675536,1705313935746,171.11,0.00016712,2]
[311675537,1705313961386,154.02,0.00022067,2]
[311675538,1705313964706,352.26,0.00022,2]
[311675539,1705313978704,200.0,0.00022095,2]
[311675540,1705314039003,171.02,0.0001757,2]
[311675541,1705314069037,329.81,0.00019955,2]
[311675542,1705314124173,202.0,0.00021474,2]
[311675543,1705314204767,159.71,0.00021998,2]
[311675544,1705314240280,394.57,0.00021825,2]
[311675545,1705314312219,250.0,0.000205,2]
[311675546,1705314328373,200.0,0.00021847,2]